bitfinex-derivatives/quotes_BTCF0:USTF0_20250517
["timestamp","ask_amount","ask_price","bid_price","bid_amount"]
[1747445515368,1.0531565,103000.0,102990.0,0.10893635]
[1747445515564,1.08863625,103000.0,102990.0,0.14303635]
[1747445516367,1.08863625,103000.0,102990.0,0.07364184]
[1747445516561,1.08863625,103000.0,102990.0,0.14603635]
[1747445517368,1.08863625,103000.0,102990.0,0.17863635]
[1747445517871,0.89863625,103000.0,102990.0,0.18263635]
[1747445518471,0.899016,103000.0,102990.0,0.18263635]
[1747445520466,0.644456,103000.0,102990.0,0.18263635]
[1747445520663,0.899056,103000.0,102990.0,0.18263635]
[1747445521067,0.644456,103000.0,102990.0,0.18263635]
[1747445521271,0.899056,103000.0,102990.0,0.18263635]
[1747445522068,0.899056,103000.0,102990.0,0.11024184]
[1747445522272,0.899056,103000.0,102990.0,0.18263635]
[1747445522974,1.259056,103000.0,102990.0,0.18263635]
[1747445525074,1.259056,103000.0,102990.0,0.14803635]
[1747445526581,1.004456,103000.0,102990.0,0.14803635]
[1747445526772,1.259016,103000.0,102990.0,0.14803635]
[1747445527080,1.259016,103000.0,102990.0,0.46803635]
[1747445528378,0.873916,103000.0,102990.0,0.43124184]
[1747445528681,0.910416,103000.0,102990.0,0.50363635]
[1747445531581,0.880416,103000.0,102990.0,0.50363635]
[1747445533481,0.880416,103000.0,102990.0,0.43124184]
[1747445533686,0.890416,103000.0,102990.0,0.50363635]
[1747445533982,0.925416,103000.0,102990.0,0.50363635]
[1747445534179,0.925416,103000.0,102990.0,0.17124184]
[1747445534384,1.145416,103000.0,102990.0,0.11124184]
[1747445534685,1.21781051,103000.0,102990.0,4e-08]
[1747445535184,1.39781051,103000.0,102990.0,4e-08]
[1747445535381,1.42050504,103000.0,102990.0,4e-08]
[1747445536086,1.51759704,103000.0,102990.0,4e-08]
[1747445536381,1.76959704,103000.0,102990.0,4e-08]
[1747445537082,0.28922284,102980.0,102970.0,5e-08]
[1747445537397,1.83885697,102980.0,102970.0,5e-08]
[1747445537588,1.93775697,102980.0,102970.0,5e-08]
[1747445537772,1.93813672,102980.0,102970.0,5e-08]
[1747445537976,2.03524872,102980.0,102970.0,5e-08]
[1747445538179,3.31672872,102980.0,102970.0,5e-08]
[1747445538378,0.1941715,102960.0,102950.0,5e-08]
[1747445538688,1.88011442,102960.0,102950.0,5e-08]
[1747445538985,1.98191442,102960.0,102950.0,5e-08]
[1747445539288,2.17677499,102960.0,102950.0,5e-08]
[1747445539985,2.17977499,102960.0,102950.0,5e-08]
[1747445540489,2.10729182,102960.0,102950.0,5e-08]
[1747445540988,1.59581182,102960.0,102950.0,5e-08]
[1747445541187,2.10753182,102960.0,102950.0,5e-08]
[1747445542586,2.18001499,102960.0,102950.0,5e-08]
[1747445542986,0.1942089,102940.0,102930.0,0.03427149]
[1747445543177,1.87411182,102940.0,102930.0,0.03427149]
[1747445543490,1.90302865,102940.0,102930.0,0.03427149]
[1747445543791,1.90302865,102940.0,102930.0,0.10675466]
[1747445544084,1.90334865,102940.0,102930.0,0.10775466]
[1747445544492,1.90334865,102940.0,102930.0,0.03527149]
[1747445545377,1.90334865,102940.0,102930.0,0.00197149]
[1747445545576,1.90334865,102940.0,102930.0,0.00397149]
[1747445545888,1.91320901,102940.0,102930.0,0.00397149]
[1747445546887,1.98569218,102940.0,102930.0,0.00397149]
[1747445547190,2.16569218,102940.0,102930.0,0.00397149]
[1747445548589,0.0485585,102930.0,102910.0,0.06654335]
[1747445548792,0.88150725,102920.0,102910.0,0.15184335]
[1747445549191,0.88150725,102920.0,102910.0,0.10184335]
[1747445549893,0.88150725,102920.0,102910.0,0.10484335]
[1747445550191,1.13618725,102920.0,102910.0,0.10484335]
[1747445550396,1.13618725,102920.0,102910.0,0.48732652]
[1747445550688,1.46718725,102920.0,102910.0,0.11084335]
[1747445551477,1.467567,102920.0,102910.0,0.11084335]
[1747445551678,1.467567,102920.0,102910.0,0.07964335]
[1747445551882,1.828367,102920.0,102910.0,0.07964335]
[1747445552283,1.90085017,102920.0,102910.0,0.07964335]
[1747445552482,1.93235017,102920.0,102910.0,0.07964335]
[1747445552990,1.859867,102920.0,102910.0,0.07964335]
[1747445554894,1.858707,102920.0,102910.0,0.07964335]
[1747445555494,1.858707,102920.0,102910.0,0.11194335]
[1747445556584,1.93119017,102920.0,102910.0,0.11194335]
[1747445556791,1.93119017,102920.0,102910.0,0.07964335]
[1747445556989,1.93119017,102920.0,102910.0,0.01094335]
[1747445558190,2.11119017,102920.0,102910.0,0.01094335]
[1747445558993,0.1942657,102910.0,102900.0,0.1658]
[1747445559194,1.05954887,102910.0,102900.0,0.1658]
[1747445559396,1.05992862,102910.0,102900.0,0.1658]
[1747445560091,1.05992862,102910.0,102900.0,0.1708]
[1747445560297,0.98744545,102910.0,102900.0,0.1708]
[1747445560798,0.98744545,102910.0,102900.0,0.203]
[1747445561896,0.98844545,102910.0,102900.0,0.207]
[1747445562700,0.70012862,102910.0,102900.0,0.207]
[1747445562896,1.42172862,102910.0,102900.0,0.207]
[1747445563603,0.59664545,102910.0,102900.0,0.33948317]
[1747445563790,0.85208545,102910.0,102900.0,0.78376727]
[1747445563992,0.85208545,102910.0,102900.0,0.58948317]
[1747445565003,0.59664545,102910.0,102900.0,0.58948317]
[1747445565206,0.85176545,102910.0,102900.0,0.58948317]
[1747445565603,0.19564545,102910.0,102900.0,1.21705024]
[1747445566203,0.19564545,102910.0,102900.0,1.32456707]
[1747445566401,0.19564545,102910.0,102900.0,0.96376707]
[1747445566804,0.19564545,102910.0,102900.0,0.48948317]
[1747445566999,0.19564545,102910.0,102900.0,0.68376627]
[1747445567606,0.45140545,102910.0,102900.0,0.68376627]
[1747445568702,0.48400545,102910.0,102900.0,0.68376627]
[1747445568903,0.19564545,102910.0,102900.0,0.97376627]
[1747445569111,0.19564545,102910.0,102900.0,1.40704944]
[1747445569308,0.19564375,102910.0,102900.0,1.40704944]
[1747445569807,0.19564375,102910.0,102900.0,2.50970544]
[1747445570409,0.19564375,102910.0,102900.0,2.25970544]
[1747445570606,0.19564375,102910.0,102900.0,2.1147391]
[1747445570810,0.19564375,102910.0,102900.0,2.25970544]
[1747445575210,0.19564375,102910.0,102900.0,2.67660544]
[1747445578615,0.19564375,102910.0,102900.0,2.57942944]
[1747445579612,0.22784375,102910.0,102900.0,2.57942944]
[1747445582211,0.22784375,102910.0,102900.0,2.32394944]
[1747445582429,0.22784375,102910.0,102900.0,1.89066627]
[1747445582606,0.25864375,102910.0,102900.0,1.89066627]
[1747445583009,0.22784375,102910.0,102900.0,1.90704944]
[1747445583212,0.03357975,102910.0,102900.0,1.90704944]
[1747445583417,0.03357975,102910.0,102900.0,2.00422544]
[1747445583915,0.03357975,102910.0,102900.0,1.90704944]
[1747445584116,0.22784365,102910.0,102900.0,1.90704944]
[1747445584512,0.2282234,102910.0,102900.0,1.90704944]
[1747445587813,0.0339595,102910.0,102900.0,1.90704944]
[1747445588015,0.2913453,102930.0,102920.0,0.194245]
[1747445588226,0.2913453,102930.0,102920.0,0.64672817]
[1747445588410,0.2427855,102930.0,102920.0,0.73762817]
[1747445589113,0.2427855,102930.0,102920.0,0.91762817]
[1747445589517,1.0174874,102940.0,102930.0,0.1942262]
[1747445589813,1.0174874,102940.0,102930.0,0.65840937]
[1747445590013,0.031,102940.0,102930.0,1.09169254]
[1747445590220,0.3223014,102950.0,102940.0,0.1942073]
[1747445590419,0.2737514,102950.0,102940.0,0.65929047]
[1747445590719,0.3067514,102950.0,102940.0,0.69019047]
[1747445590915,0.033,102950.0,102940.0,0.69019047]
[1747445591120,0.2573884,102950.0,102940.0,0.69019047]
[1747445591517,0.2573884,102950.0,102940.0,0.6177073]
[1747445591814,0.2593884,102950.0,102940.0,0.69019047]
[1747445592019,0.2613884,102950.0,102940.0,1.19019047]
[1747445592515,0.2593884,102950.0,102940.0,1.19019047]
[1747445593411,0.2573884,102950.0,102940.0,1.19019047]
[1747445593812,0.2573884,102950.0,102940.0,0.89669047]
[1747445594324,0.2573884,102950.0,102940.0,1.15919047]
[1747445594519,0.2573884,102950.0,102940.0,1.19109047]
[1747445594707,0.0302,102950.0,102940.0,1.55189047]
[1747445595111,0.0302,102950.0,102940.0,1.73189047]
[1747445595312,0.2243884,102950.0,102940.0,1.73189047]
[1747445595725,0.2563884,102950.0,102940.0,1.37109047]
[1747445596320,0.2573884,102950.0,102940.0,1.37409047]
[1747445596518,0.2573884,102950.0,102940.0,1.37709047]
[1747445596717,0.2573884,102950.0,102940.0,1.3046073]
[1747445597021,0.2573884,102950.0,102940.0,1.37709047]
[1747445597516,0.2573884,102950.0,102940.0,1.73789047]
[1747445597919,0.00345849,102960.0,102950.0,0.1941884]
[1747445598122,0.0485387,102970.0,102960.0,0.1941696]
[1747445598123,0.0317,102970.0,102960.0,0.1941696]
[1747445598422,0.0639,102970.0,102960.0,1.10373594]
[1747445598721,0.2580507,102970.0,102960.0,1.10373594]
[1747445599223,0.2580507,102970.0,102960.0,1.71125277]
[1747445599425,0.74456155,102970.0,102960.0,0.9267696]
[1747445599723,0.27376155,102970.0,102960.0,0.99925277]
[1747445599911,0.27376155,102970.0,102960.0,1.02965277]
[1747445600107,0.27376155,102970.0,102960.0,0.84965277]
[1747445600611,0.27376155,102970.0,102960.0,1.28213594]
[1747445600811,0.0649,102970.0,102960.0,1.64293594]
[1747445601221,0.0332,102970.0,102960.0,1.82293594]
[1747445602116,0.05221821,102980.0,102970.0,0.1941507]
[1747445602320,0.0333,102980.0,102970.0,1.30601387]
[1747445603125,0.0333,102980.0,102970.0,1.80601387]
[1747445603316,0.0333,102980.0,102970.0,1.98701387]
[1747445604217,0.23898319,102990.0,102980.0,0.1941319]
[1747445604421,0.27228319,102990.0,102980.0,0.69991507]
[1747445605216,0.27228319,102990.0,102980.0,1.19991507]
[1747445607917,0.27228319,102990.0,102980.0,1.1274319]
[1747445608219,0.27228319,102990.0,102980.0,1.19991507]
[1747445608923,0.27228319,102990.0,102980.0,1.1274319]
[1747445609224,0.63308319,102990.0,102980.0,1.16871507]
[1747445610616,0.63308319,102990.0,102980.0,1.20031507]
[1747445611225,0.27228319,102990.0,102980.0,1.20031507]
[1747445612020,0.63308319,102990.0,102980.0,0.84031507]
[1747445612616,0.27228319,102990.0,102980.0,0.84031507]
[1747445613027,0.63308319,102990.0,102980.0,0.84031507]
[1747445618825,0.27228319,102990.0,102980.0,1.17031507]
[1747445619122,0.0333,102990.0,102980.0,1.53111507]
[1747445619321,0.2752266,103000.0,102990.0,0.1941131]
[1747445619523,0.3072266,103000.0,102990.0,1.16497944]
[1747445619726,0.3072266,103000.0,102990.0,1.09249627]
[1747445619918,0.3072266,103000.0,102990.0,0.73169627]
[1747445620120,0.3072266,103000.0,102990.0,0.6592131]
[1747445620322,0.3072266,103000.0,102990.0,0.30839627]
[1747445620521,0.3072266,103000.0,102990.0,0.70169627]
[1747445620722,0.0646,103000.0,102990.0,0.70169627]
[1747445621027,0.2586942,103000.0,102990.0,1.63497944]
[1747445621228,0.034,103000.0,102990.0,1.63497944]
[1747445621422,0.2280942,103000.0,102990.0,1.63497944]
[1747445621621,0.2290942,103000.0,102990.0,1.63497944]
[1747445622424,0.2613942,103000.0,102990.0,1.63497944]
[1747445626233,0.2613942,103000.0,102990.0,2.05187944]
[1747445627940,0.0673,103000.0,102990.0,2.05187944]
[1747445628233,0.2613942,103000.0,102990.0,2.05187944]
[1747445628834,0.2290942,103000.0,102990.0,2.05187944]
[1747445631034,0.2601942,103000.0,102990.0,2.05187944]
[1747445632027,0.2601942,103000.0,102990.0,2.30587944]
[1747445633933,0.2601942,103000.0,102990.0,1.9069131]
[1747445634134,0.6209942,103000.0,102990.0,1.1410131]
[1747445634336,0.7109942,103000.0,102990.0,1.27629627]
[1747445634540,0.7109942,103000.0,102990.0,1.30879627]
[1747445634731,0.6209942,103000.0,102990.0,1.30879627]
[1747445636339,0.6209942,103000.0,102990.0,1.59879627]
[1747445638337,0.6209942,103000.0,102990.0,1.18189627]
[1747445639436,0.6209942,103000.0,102990.0,0.9094131]
[1747445639638,0.6209942,103000.0,102990.0,0.98189627]
[1747445639839,0.6209942,103000.0,102990.0,1.18189627]
[1747445640848,0.6209942,103000.0,102990.0,0.7841131]
[1747445641046,0.8845942,103000.0,102990.0,0.6941131]
[1747445641240,1.0645942,103000.0,102990.0,0.6941131]
[1747445641944,1.0645942,103000.0,102990.0,0.76659627]
[1747445642346,1.0645942,103000.0,102990.0,0.26659627]
[1747445643237,1.0645942,103000.0,102990.0,0.63779627]
[1747445643439,1.0545942,103000.0,102990.0,0.2579131]
[1747445643638,0.8009942,103000.0,102990.0,0.33039627]
[1747445643836,0.8009942,103000.0,102990.0,0.47039627]
[1747445644341,0.6209942,103000.0,102990.0,0.47039627]
[1747445646943,0.6209942,103000.0,102990.0,0.14]
[1747445647150,0.1941319,102980.0,102970.0,1.2129444]
[1747445647343,0.1941319,102980.0,102970.0,1.4229444]
[1747445647541,0.6196319,102980.0,102970.0,0.6596]
[1747445647851,1.42262707,102980.0,102970.0,0.01]
[1747445648054,1.42262707,102980.0,102970.0,0.2041508]
[1747445648252,1.60262707,102980.0,102970.0,0.01]
[1747445649448,1.60362707,102980.0,102970.0,0.013]
[1747445649650,1.60362707,102980.0,102970.0,0.003]
[1747445649843,1.60362707,102980.0,102970.0,0.006]
[1747445650551,1.60362707,102980.0,102970.0,0.003]
[1747445650753,0.1941696,102960.0,102950.0,0.38936707]
[1747445651050,0.8083296,102960.0,102950.0,0.75936707]
[1747445651351,0.9005296,102960.0,102950.0,0.37339947]
[1747445651549,0.9005296,102960.0,102950.0,0.0019426]
[1747445651550,1.64381277,102960.0,102950.0,0.0019426]
[1747445651854,1.64381277,102960.0,102940.0,0.0366407]
[1747445651855,0.1941885,102950.0,102940.0,0.0366407]
[1747445652038,0.1941885,102950.0,102920.0,0.7554969]
[1747445652039,0.1942262,102930.0,102920.0,0.7554969]
[1747445652240,0.5550262,102930.0,102920.0,0.4558]
[1747445652442,0.9780262,102930.0,102920.0,0.36]
[1747445652636,0.1942451,102920.0,102910.0,0.30845825]
[1747445652845,0.88535821,102920.0,102910.0,0.23194335]
[1747445653045,0.88535821,102920.0,102910.0,0.00194335]
[1747445653248,0.89535821,102920.0,102910.0,0.00194335]
[1747445653449,0.99535821,102920.0,102910.0,0.00194335]
[1747445653753,1.06784138,102920.0,102910.0,0.00194335]
[1747445653956,1.06784138,102920.0,102910.0,0.00594335]
[1747445654146,1.17535821,102920.0,102910.0,0.00594335]
[1747445654651,1.49784138,102920.0,102910.0,0.00594335]
[1747445655151,1.50867205,102920.0,102910.0,0.01094335]
[1747445657148,1.50867205,102920.0,102910.0,0.24342652]
[1747445657149,1.07618888,102920.0,102910.0,0.24342652]
[1747445657350,1.07618888,102920.0,102910.0,0.01094335]
[1747445657570,1.07614888,102920.0,102910.0,0.04134335]
[1747445657773,0.81307821,102920.0,102910.0,0.34029052]
[1747445658077,1.06631821,102920.0,102910.0,0.46029052]
[1747445658280,0.88631821,102920.0,102910.0,0.46029052]
[1747445658760,0.88631821,102920.0,102910.0,0.26602652]
[1747445658966,0.88631821,102920.0,102910.0,0.07354335]
[1747445659975,0.88627821,102920.0,102910.0,0.07354335]
[1747445660178,0.88627821,102920.0,102910.0,0.37029052]
[1747445660476,0.24037821,102920.0,102910.0,0.37029052]
[1747445660772,0.49357821,102920.0,102910.0,0.37029052]
[1747445661072,0.01583311,102920.0,102910.0,1.12719052]
[1747445661266,0.001,102920.0,102910.0,1.48799052]
[1747445661869,0.001,102920.0,102910.0,1.98799052]
[1747445662068,0.001,102920.0,102910.0,2.16799052]
[1747445663673,0.001,102920.0,102910.0,2.43107277]
[1747445670178,0.001,102920.0,102910.0,2.3585896]
[1747445670387,0.001,102920.0,102910.0,2.43107277]
[1747445671680,0.1952451,102920.0,102910.0,2.42131052]
[1747445671980,0.1952451,102920.0,102910.0,2.12799052]
[1747445672483,0.2253451,102920.0,102910.0,2.12799052]
[1747445673284,0.2253451,102920.0,102910.0,1.46470735]
[1747445673479,0.2253451,102920.0,102910.0,1.53719052]
[1747445673480,0.2569451,102920.0,102910.0,1.53719052]
[1747445674286,0.2569451,102920.0,102910.0,1.35719052]
[1747445674584,0.2569451,102920.0,102910.0,1.28470735]
[1747445674777,0.6177451,102920.0,102910.0,1.35719052]
[1747445674976,0.8705451,102920.0,102910.0,1.35719052]
[1747445675377,0.8705451,102920.0,102910.0,1.25250735]
[1747445675578,0.9037451,102920.0,102910.0,1.25250735]
[1747445675876,0.9037451,102920.0,102910.0,1.32499052]
[1747445676077,0.9037451,102920.0,102910.0,0.85569052]
[1747445677382,0.9037451,102920.0,102910.0,0.43879052]
[1747445678088,0.5428651,102920.0,102910.0,0.43879052]
[1747445678590,0.9036651,102920.0,102910.0,0.43879052]
[1747445678887,0.5428651,102920.0,102910.0,0.43879052]
[1747445679182,0.2901451,102920.0,102910.0,0.43879052]
[1747445679390,0.9036651,102920.0,102910.0,0.43879052]
[1747445680188,0.5428651,102920.0,102910.0,0.43879052]
[1747445680578,0.9036651,102920.0,102910.0,0.43879052]
[1747445680872,0.5428651,102920.0,102910.0,0.43879052]
[1747445681078,0.9036651,102920.0,102910.0,0.43879052]
[1747445681486,0.5428651,102920.0,102910.0,0.43879052]
[1747445682992,0.9036651,102920.0,102910.0,0.43879052]
[1747445683588,0.5428651,102920.0,102910.0,0.36630735]
[1747445683790,0.9036651,102920.0,102910.0,0.36630735]
[1747445684087,0.5428651,102920.0,102910.0,0.36630735]
[1747445684285,0.2569451,102920.0,102910.0,0.64879052]
[1747445684694,0.2569451,102920.0,102910.0,1.00959052]
[1747445685285,0.2569451,102920.0,102910.0,1.18959052]
[1747445686888,0.2569451,102920.0,102910.0,1.11710735]
[1747445687086,0.2569451,102920.0,102910.0,0.59640735]
[1747445687281,0.2569451,102920.0,102910.0,0.40214335]
[1747445687282,0.5421251,102920.0,102910.0,0.40214335]
[1747445687590,0.9429251,102920.0,102910.0,0.20520735]
[1747445687893,0.9029251,102920.0,102910.0,0.27769052]
[1747445688090,0.0311,102920.0,102910.0,1.21189052]
[1747445688493,0.2253451,102920.0,102910.0,1.21189052]
[1747445689694,0.2253451,102920.0,102910.0,1.71189052]
[1747445690192,0.2253451,102920.0,102910.0,1.27860735]
[1747445690395,0.2567451,102920.0,102910.0,1.08109052]
[1747445690591,0.3098451,102920.0,102910.0,0.91580725]
[1747445690890,0.3098451,102920.0,102910.0,0.72154335]
[1747445690891,0.9230451,102920.0,102910.0,0.72154335]
[1747445691098,0.9230451,102920.0,102910.0,0.51094335]
[1747445691584,1.24800827,102920.0,102910.0,0.51094335]
[1747445691982,1.24800827,102920.0,102910.0,0.01094335]
[1747445692187,1.42800827,102920.0,102910.0,0.01094335]
[1747445692495,1.72800827,102920.0,102910.0,0.01094335]
[1747445696494,1.6555251,102920.0,102910.0,0.01094335]
[1747445696993,1.6554051,102920.0,102910.0,0.01094335]
[1747445697994,1.72788827,102920.0,102910.0,0.01094335]
[1747445701095,1.6554051,102920.0,102910.0,0.01094335]
[1747445701301,1.6553251,102920.0,102910.0,0.01094335]
[1747445701597,1.4028451,102920.0,102910.0,0.01094335]
[1747445701989,1.4028451,102920.0,102910.0,0.07104335]
[1747445702393,1.4028451,102920.0,102910.0,0.51779042]
[1747445702592,1.1506451,102920.0,102910.0,0.51779042]
[1747445702995,0.6889051,102920.0,102910.0,0.51779042]
[1747445703192,0.5089051,102920.0,102910.0,0.51779042]
[1747445703498,0.4775051,102920.0,102910.0,0.51779042]
[1747445703697,0.1952451,102920.0,102910.0,1.11549042]
[1747445703895,0.001,102920.0,102910.0,1.43549042]
[1747445704092,0.001,102920.0,102910.0,1.61549042]
[1747445704303,0.20880594,102940.0,102930.0,0.1942261]
[1747445704497,0.20880594,102940.0,102930.0,1.01999244]
[1747445704693,0.39525817,102950.0,102940.0,0.1942073]
[1747445704893,0.58944667,102950.0,102940.0,0.56209047]
[1747445705191,0.58944667,102950.0,102940.0,0.74209047]
[1747445705794,0.58944667,102950.0,102940.0,0.54209047]
[1747445706503,0.22864667,102950.0,102940.0,0.55209047]
[1747445708114,0.22864667,102950.0,102940.0,0.75209047]
[1747445709108,0.2432529,102950.0,102940.0,0.75209047]
[1747445710005,0.04760623,102950.0,102940.0,1.16899047]
[1747445710195,0.01460623,102950.0,102940.0,1.52979047]
[1747445710400,0.1941885,102950.0,102940.0,1.52979047]
[1747445710906,0.1941885,102950.0,102940.0,2.02979047]
[1747445711400,0.6279885,102950.0,102940.0,1.3965073]
[1747445711599,0.6581885,102950.0,102940.0,1.3965073]
[1747445711905,0.6581885,102950.0,102940.0,1.46999047]
[1747445712110,0.6581885,102950.0,102940.0,1.28999047]
[1747445712305,0.6581885,102950.0,102940.0,0.78999047]
[1747445712606,0.6181885,102950.0,102940.0,0.78999047]
[1747445713101,0.6181885,102950.0,102940.0,0.79199047]
[1747445713301,0.6181885,102950.0,102940.0,0.37509047]
[1747445713498,0.2573885,102950.0,102940.0,0.37509047]
[1747445713906,0.27187668,102950.0,102940.0,0.37509047]
[1747445716106,0.01448818,102950.0,102940.0,0.36509047]
[1747445716310,0.1941885,102950.0,102940.0,1.50279047]
[1747445717009,0.1941885,102950.0,102940.0,2.00279047]
[1747445717209,0.1941885,102950.0,102940.0,2.18279047]
[1747445717504,0.1941885,102950.0,102940.0,1.82199047]
[1747445717711,0.2245885,102950.0,102940.0,1.82199047]
[1747445718104,0.23951916,102950.0,102940.0,1.82199047]
[1747445719006,0.60031916,102950.0,102940.0,1.7495073]
[1747445719206,0.36011916,102950.0,102940.0,0.6084]
[1747445719505,0.63091916,102950.0,102940.0,0.503]
[1747445719711,1.02259916,102950.0,102940.0,0.503]
[1747445719913,1.36708233,102950.0,102940.0,0.503]
[1747445720412,1.46422233,102950.0,102940.0,0.003]
[1747445720611,0.1942262,102930.0,102920.0,0.0935]
[1747445720803,0.1942451,102920.0,102910.0,0.19620735]
[1747445721003,0.6183451,102920.0,102910.0,0.25960735]
[1747445721712,0.6183451,102920.0,102910.0,0.75960735]
[1747445723113,0.6193451,102920.0,102910.0,0.76460735]
[1747445723510,0.6193451,102920.0,102910.0,0.76860735]
[1747445723714,0.6193451,102920.0,102910.0,1.08860735]
[1747445724011,0.5869451,102920.0,102910.0,1.16109052]
[1747445724217,0.1952451,102920.0,102910.0,1.16109052]
[1747445725315,0.1952451,102920.0,102910.0,1.34109052]
[1747445725810,0.2263451,102920.0,102910.0,1.34109052]
[1747445728215,0.2263451,102920.0,102910.0,1.75799052]
[1747445730015,0.2263451,102920.0,102910.0,2.21595852]
[1747445730016,0.001,102920.0,102910.0,2.21595852]
[1747445730217,0.6354738,102940.0,102930.0,0.1942262]
[1747445730411,0.6840269,102940.0,102930.0,0.63670937]
[1747445730603,0.6840269,102940.0,102930.0,0.70110937]
[1747445731318,0.6840269,102940.0,102930.0,0.88110937]
[1747445732321,0.226121,102940.0,102930.0,1.24190937]
[1747445732521,0.0319,102940.0,102930.0,1.65980937]
[1747445732815,0.1942073,102940.0,102930.0,1.92650824]
[1747445733415,0.1942073,102940.0,102930.0,1.92850824]
[1747445733619,0.1942073,102940.0,102930.0,1.85602507]
[1747445733919,0.1942073,102940.0,102930.0,2.35602507]
[1747445734709,0.2243073,102940.0,102930.0,2.35602507]
[1747445736122,0.1942073,102940.0,102930.0,2.35602507]
[1747445736424,0.224298,102950.0,102940.0,0.1942073]
[1747445736622,0.224298,102950.0,102940.0,1.10339047]
[1747445737121,0.224298,102950.0,102940.0,1.28339047]
[1747445740323,0.224298,102950.0,102940.0,1.52029047]
[1747445741012,0.3628,102960.0,102950.0,0.1941885]
[1747445741216,0.3628,102960.0,102950.0,1.07057167]
[1747445741217,0.002,102960.0,102950.0,1.07057167]
[1747445741418,0.1961696,102960.0,102950.0,1.07057167]
[1747445742128,0.1981696,102960.0,102950.0,1.75057167]
[1747445742718,0.1981696,102960.0,102950.0,2.00229167]
[1747445743023,0.002,102960.0,102950.0,2.00529167]
[1747445743418,0.003,102960.0,102950.0,2.00929167]
[1747445744124,0.0331,102970.0,102960.0,0.1941696]
[1747445744419,0.0331,102970.0,102960.0,1.15603594]
[1747445744822,0.03255777,102980.0,102970.0,0.1941508]
[1747445745123,0.5083798,103000.0,102970.0,1.13016317]
[1747445745330,0.9858911,103000.0,102990.0,0.26659617]
[1747445745830,0.7348911,103000.0,102990.0,0.260413]
[1747445746129,0.7348911,103000.0,102990.0,0.33289617]
[1747445747130,0.74924674,103000.0,102990.0,0.33289617]
[1747445747525,0.75224674,103000.0,102990.0,0.33289617]
[1747445747930,0.74924674,103000.0,102990.0,0.33289617]
[1747445748131,0.75024674,103000.0,102990.0,0.260413]
[1747445748336,0.78104674,103000.0,102990.0,0.260413]
[1747445748732,0.78504674,103000.0,102990.0,0.260413]
[1747445749331,0.78104674,103000.0,102990.0,0.260413]
[1747445749634,0.78304674,103000.0,102990.0,0.260413]
[1747445751126,0.78304674,103000.0,102990.0,0.227213]
[1747445751545,0.194113,102990.0,102980.0,0.7395817]
[1747445751746,0.689513,102990.0,102980.0,0.7822817]
[1747445752345,0.649513,102990.0,102980.0,1.15476487]
[1747445752545,0.649513,102990.0,102980.0,1.18626487]
[1747445752740,0.617113,102990.0,102980.0,1.18726487]
[1747445753646,0.256313,102990.0,102980.0,1.18726487]
[1747445754144,0.256313,102990.0,102980.0,1.18826487]
[1747445754939,0.256313,102990.0,102980.0,1.18926487]
[1747445757545,0.256313,102990.0,102980.0,1.16776487]
[1747445757740,0.287113,102990.0,102980.0,0.84776487]
[1747445758248,0.287113,102990.0,102980.0,0.43086487]
[1747445758641,0.287113,102990.0,102980.0,0.46036487]
[1747445758946,0.287113,102990.0,102980.0,0.67936487]
[1747445759848,0.287113,102990.0,102980.0,0.68036487]
[1747445760049,0.256313,102990.0,102980.0,0.67936487]
[1747445760346,0.256313,102990.0,102980.0,0.68136487]
[1747445761646,0.256313,102990.0,102980.0,0.6088817]
[1747445761836,0.256313,102990.0,102980.0,0.5468817]
[1747445762037,0.617113,102990.0,102980.0,0.3268817]
[1747445762349,0.677113,102990.0,102980.0,0.3268817]
[1747445762738,0.316313,102990.0,102980.0,0.3268817]
[1747445763244,0.677113,102990.0,102980.0,0.3268817]
[1747445763439,0.316313,102990.0,102980.0,0.3268817]
[1747445763647,0.677113,102990.0,102980.0,0.3268817]
[1747445765136,0.99959617,102990.0,102980.0,0.003]
[1747445765342,0.99959617,102990.0,102980.0,0.1971319]
[1747445765543,0.927113,102990.0,102980.0,0.1971319]
[1747445766151,1.107113,102990.0,102980.0,0.1971319]
[1747445767751,1.107113,102990.0,102980.0,0.2275319]
[1747445769047,0.2422,102990.0,102980.0,0.47001507]
[1747445769251,0.256313,102990.0,102980.0,1.05551507]
[1747445770556,0.256313,102990.0,102980.0,0.69471507]
[1747445771455,0.256313,102990.0,102980.0,0.3122319]
[1747445771655,0.256313,102990.0,102980.0,0.38471507]
[1747445772258,0.256313,102990.0,102980.0,0.69471507]
[1747445773456,0.194113,102990.0,102980.0,1.05551507]
[1747445775548,0.194113,102990.0,102980.0,1.55551507]
[1747445776755,0.194113,102990.0,102980.0,1.19471507]
[1747445776954,0.867833,102990.0,102980.0,0.5766]
[1747445777256,1.137833,102990.0,102980.0,0.7275319]
[1747445778056,1.137833,102990.0,102980.0,0.2275319]
[1747445778252,0.257113,102990.0,102980.0,0.52001507]
[1747445778558,0.257113,102990.0,102980.0,0.55775723]
[1747445779453,0.257113,102990.0,102980.0,0.55231507]
[1747445783264,0.194113,102990.0,102980.0,0.55231507]
[1747445783759,0.226513,102990.0,102980.0,0.55231507]
[1747445784662,0.0324,102990.0,102980.0,0.55231507]
[1747445784957,0.90003204,103000.0,102990.0,0.1941131]
[1747445785163,0.90003204,103000.0,102990.0,0.54309627]
[1747445785164,0.93333204,103000.0,102990.0,0.54309627]
[1747445785864,0.32289204,103000.0,102990.0,0.54309627]
[1747445786364,0.32289204,103000.0,102990.0,0.54409627]
[1747445788264,0.68369204,103000.0,102990.0,0.54409627]
[1747445788466,0.32289204,103000.0,102990.0,0.4716131]
[1747445788666,0.32289204,103000.0,102990.0,0.54409627]
[1747445788968,0.93317204,103000.0,102990.0,0.54409627]
[1747445790168,0.95317204,103000.0,102990.0,0.54409627]
[1747445794070,0.34289204,103000.0,102990.0,0.54409627]
[1747445794673,0.70369204,103000.0,102990.0,0.54409627]
[1747445795977,0.70369204,103000.0,102990.0,0.4716131]
[1747445796272,0.70369204,103000.0,102990.0,0.54409627]
[1747445797874,0.022,103000.0,102990.0,0.54409627]
[1747445798173,0.002,103000.0,102990.0,1.33737944]
[1747445798374,0.002,103000.0,102990.0,1.83737944]
[1747445798573,0.002,103000.0,102990.0,1.0716131]
[1747445798574,0.1960942,103000.0,102990.0,1.0716131]
[1747445798869,0.2288942,103000.0,102990.0,1.36409627]
[1747445799265,0.2288942,103000.0,102990.0,1.38409627]
[1747445799465,0.2616942,103000.0,102990.0,1.74489627]
[1747445799666,1.01980294,103000.0,102990.0,1.021]
[1747445799963,0.93639977,103000.0,102990.0,0.926213]
[1747445800167,1.11639977,103000.0,102990.0,0.5521]
[1747445800376,1.48888294,103000.0,102990.0,0.521]
[1747445800677,1.48888294,103000.0,102990.0,0.501]
[1747445800876,1.48888294,103000.0,102990.0,0.001]
[1747445804880,0.1941319,102980.0,102970.0,0.0647]